fUSD/lending_fUSD_20251117
["ID","MTS","AMOUNT","RATE_DAILY","PERIOD"]
[394197931,1763371856289,-1714.26664796,0.0003,2]
[394197932,1763371856298,-480.32035639,0.0003,30]
[394197933,1763371856308,-986.1999583,0.0003,120]
[394197934,1763371856317,-151.0,0.0003,7]
[394197935,1763371856327,-151.0,0.0003,7]
[394197936,1763371856336,-151.0,0.0003,7]
[394197937,1763371856345,-151.0,0.0003,7]
[394197938,1763371856354,-155.071394,0.0003,7]
[394197939,1763371856364,-151.0,0.0003,7]
[394197940,1763371856375,-153.703591,0.0003,7]
[394197941,1763371856385,-520.143045,0.0003,7]
[394197942,1763371856394,-520.143045,0.0003,7]
[394197943,1763371856403,-520.143045,0.0003,7]
[394197944,1763371856413,-151.0,0.0003,7]
[394197945,1763371856424,-151.0,0.0003,7]
[394197946,1763371856435,-151.0,0.0003,7]
[394197947,1763371856448,-151.0,0.0003,7]
[394197948,1763371856458,-151.0,0.0003,7]
[394197949,1763371856469,-520.143045,0.0003,7]
[394197950,1763371856481,-151.0,0.0003,7]
[394197951,1763371856490,-151.0,0.0003,7]
[394197952,1763371856500,-151.0,0.0003,7]
[394197953,1763371856511,-151.0,0.0003,7]
[394197954,1763371856521,-151.0,0.0003,7]
[394197955,1763371856531,-151.0,0.0003,7]
[394197956,1763371856540,-151.0,0.0003,7]
[394197957,1763371856550,-151.0,0.0003,7]
[394197958,1763371856559,-151.0,0.0003,7]
[394197959,1763371856570,-151.0,0.0003,7]
[394197960,1763371856579,-5657.51565168,0.0003,2]
[394197961,1763371856588,-4664.84875318,0.0003,2]
[394197962,1763371856598,-19650.26606052,0.0003,2]
[394197963,1763371856607,-151.0,0.0003,7]
[394197964,1763371856616,-151.0,0.0003,7]
[394197965,1763371856626,-151.0,0.0003,7]
[394197966,1763371856635,-56096.26934495,0.0003,2]
[394197967,1763371856645,-151.0,0.0003,7]
[394197968,1763371856655,-151.0,0.0003,7]
[394197969,1763371856664,-151.0,0.0003,7]
[394197970,1763371856673,-151.0,0.0003,7]
[394197971,1763371856684,-151.0,0.0003,7]
[394197972,1763371856694,-152.920524,0.0003,7]
[394197973,1763371856703,-151.0,0.0003,7]
[394197974,1763371856712,-151.0,0.0003,7]
[394197975,1763371856721,-151.0,0.0003,7]
[394197976,1763371856731,-151.0,0.0003,7]
[394197977,1763371856739,-151.0,0.0003,7]
[394197978,1763371856748,-151.0,0.0003,7]
[394197979,1763371856758,-376.962864,0.0003,7]
[394197980,1763371856768,-376.962864,0.0003,7]
[394197981,1763371856777,-376.962864,0.0003,7]
[394197982,1763371856787,-364.451564,0.0003,7]
[394197983,1763371856796,-376.962864,0.0003,7]
[394197984,1763371856806,-364.451564,0.0003,7]
[394197985,1763371856815,-364.451564,0.0003,7]
[394197986,1763371856825,-364.451564,0.0003,7]
[394197987,1763371856834,-513.008002,0.0003,7]
[394197988,1763371856843,-335.956017,0.0003,7]
[394197989,1763371856853,-513.008002,0.0003,7]
[394197990,1763371856862,-151.0,0.0003,7]
[394197991,1763371856871,-335.956017,0.0003,7]
[394197992,1763371856881,-513.008002,0.0003,7]
[394197993,1763371856890,-151.0,0.0003,7]
[394197994,1763371856900,-513.008002,0.0003,7]
[394197995,1763371856910,-335.956017,0.0003,7]
[394197996,1763371856919,-151.0,0.0003,7]
[394197997,1763371856929,-335.956017,0.0003,7]
[394197998,1763371856938,-151.0,0.0003,7]
[394197999,1763371856949,-189.813334,0.0003,7]
[394198000,1763371856959,-189.813334,0.0003,7]
[394198001,1763371856968,-189.813334,0.0003,7]
[394198002,1763371856978,-180.222763,0.0003,7]
[394198003,1763371856989,-189.813334,0.0003,7]
[394198004,1763371856999,-180.222763,0.0003,7]
[394198005,1763371857010,-180.222763,0.0003,7]
[394198006,1763371857021,-180.222763,0.0003,7]
[394198007,1763371857031,-151.0,0.0003,7]
[394198008,1763371857041,-173.961542,0.0003,7]
[394198009,1763371857050,-173.961542,0.0003,7]
[394198010,1763371857060,-173.961542,0.0003,7]
[394198011,1763371857071,-173.961542,0.0003,7]
[394198012,1763371857081,-355.123468,0.0003,7]
[394198013,1763371857091,-355.123468,0.0003,7]
[394198014,1763371857100,-355.123468,0.0003,7]
[394198015,1763371857110,-644.285248,0.0003,7]
[394198016,1763371857119,-151.0,0.0003,7]
[394198017,1763371857128,-156.353653,0.0003,7]
[394198018,1763371857137,-355.123468,0.0003,7]
[394198019,1763371857146,-644.285248,0.0003,7]
[394198020,1763371857156,-151.0,0.0003,7]
[394198021,1763371857166,-644.285248,0.0003,7]
[394198022,1763371857175,-644.285248,0.0003,7]
[394198023,1763371857185,-151.0,0.0003,7]
[394198024,1763371857194,-157.339662,0.0003,7]
[394198025,1763371857203,-520.938436,0.0003,7]
[394198026,1763371857213,-151.0,0.0003,7]
[394198027,1763371857223,-520.938436,0.0003,7]
[394198028,1763371857232,-151.0,0.0003,7]
[394198029,1763371857242,-520.938436,0.0003,7]
[394198030,1763371857252,-151.0,0.0003,7]
[394198031,1763371857262,-520.938436,0.0003,7]
[394198032,1763371857271,-327.819716,0.0003,7]
[394198033,1763371857280,-327.819716,0.0003,7]
[394198034,1763371857290,-317.8,0.00030025,30]
[394198035,1763371857299,-169.4826098,0.00030066,11]
[394198036,1763371857308,-181.0,0.0003011,2]
[394198037,1763371857318,-153.223098,0.00030117,7]
[394198038,1763371857329,-151.0,0.00030117,7]
[394198039,1763371857339,-151.0,0.00030117,7]
[394198040,1763371857349,-151.0,0.00030117,7]
[394198041,1763371857360,-221.848513,0.00030117,7]
[394198042,1763371857370,-152.89054,0.0003012,7]
[394198043,1763371857380,-435.342005,0.0003012,7]
[394198044,1763371857390,-435.342005,0.0003012,7]
[394198045,1763371857400,-151.0,0.0003012,7]
[394198046,1763371857411,-435.342005,0.0003012,7]
[394198047,1763371857421,-151.0,0.0003012,7]
[394198048,1763371857435,-435.342005,0.0003012,7]
[394198049,1763371857445,-151.0,0.0003012,7]
[394198050,1763371857455,-151.0,0.0003012,7]
[394198051,1763371857465,-589.96183,0.0003012,7]
[394198052,1763371857475,-151.0,0.0003012,7]
[394198053,1763371857485,-589.96183,0.0003012,7]
[394198054,1763371857496,-332.626043,0.0003012,7]
[394198055,1763371857506,-255.950202,0.0003012,7]
[394198056,1763371857516,-589.96183,0.0003012,7]
[394198057,1763371857530,-255.950202,0.0003012,7]
[394198058,1763371857540,-332.626043,0.0003012,7]
[394198059,1763371857549,-589.96183,0.0003012,7]
[394198060,1763371857560,-151.0,0.0003012,7]
[394198061,1763371857570,-255.950202,0.0003012,7]
[394198062,1763371857579,-332.626043,0.0003012,7]
[394198063,1763371857589,-255.950202,0.0003012,7]
[394198064,1763371857599,-332.626043,0.0003012,7]
[394198065,1763371857609,-151.0,0.0003012,7]
[394198066,1763371857619,-151.0,0.0003012,7]
[394198067,1763371857628,-151.0,0.0003012,7]
[394198068,1763371857638,-151.0,0.0003012,7]
[394198069,1763371857647,-239.103198,0.0003012,7]
[394198070,1763371857657,-151.0,0.0003012,7]
[394198071,1763371857666,-151.0,0.0003012,7]
[394198072,1763371857676,-151.000035,0.0003012,7]
[394198073,1763371857687,-151.0,0.0003012,7]
[394198074,1763371857698,-151.0,0.0003012,7]
[394198075,1763371857707,-151.0,0.0003012,7]
[394198076,1763371857717,-151.0,0.0003012,7]
[394198077,1763371857727,-151.0,0.0003012,7]
[394198078,1763371857736,-256.849912,0.0003012,7]
[394198079,1763371857747,-288.138472,0.0003012,7]
[394198080,1763371857757,-151.0,0.0003012,7]
[394198081,1763371857766,-256.849912,0.0003012,7]
[394198082,1763371857776,-151.0,0.0003012,7]
[394198083,1763371857786,-151.0,0.0003012,7]
[394198084,1763371857796,-256.849912,0.0003012,7]
[394198085,1763371857806,-151.0,0.0003012,7]
[394198086,1763371857818,-256.849912,0.0003012,7]
[394198087,1763371857829,-203.657462,0.0003012,7]
[394198088,1763371857840,-203.657462,0.0003012,7]
[394198089,1763371857850,-203.657462,0.0003012,7]
[394198090,1763371857860,-165.883715,0.0003012,7]
[394198091,1763371857869,-203.657462,0.0003012,7]
[394198092,1763371857879,-165.883715,0.0003012,7]
[394198093,1763371857889,-151.0,0.0003012,7]
[394198094,1763371857898,-165.883715,0.0003012,7]
[394198095,1763371857909,-165.883715,0.0003012,7]
[394198096,1763371857920,-257.761796,0.0003012,7]
[394198097,1763371857931,-257.761796,0.0003012,7]
[394198098,1763371857942,-257.761796,0.0003012,7]
[394198099,1763371857951,-257.761796,0.0003012,7]
[394198100,1763371857961,-151.0,0.00030126,7]
[394198101,1763371857970,-151.0,0.00030126,7]
[394198102,1763371857979,-201.58518184,0.00030126,7]
[394198103,1763371857989,-500.0,0.00030127,7]
[394198104,1763371857999,-500.0,0.00030127,7]
[394198105,1763371858009,-500.0,0.00030127,7]
[394198106,1763371858018,-151.0,0.00030127,7]
[394198107,1763371858028,-151.0,0.00030127,7]
[394198108,1763371858038,-151.0,0.00030127,7]
[394198109,1763371858049,-152.502426,0.00030127,7]
[394198110,1763371858059,-301.624884,0.00030127,7]
[394198111,1763371858069,-151.0,0.00030127,7]
[394198112,1763371858081,-155.46606,0.00030127,7]
[394198113,1763371858091,-151.0,0.00030127,7]
[394198114,1763371858100,-151.0,0.00030127,7]
[394198115,1763371858110,-214.564455,0.00030127,7]
[394198116,1763371858119,-214.564455,0.00030127,7]
[394198117,1763371858130,-214.564455,0.00030127,7]
[394198118,1763371858139,-214.564455,0.00030127,7]
[394198119,1763371858148,-214.564455,0.00030127,7]
[394198120,1763371858158,-214.564455,0.00030127,7]
[394198121,1763371858168,-214.564455,0.00030127,7]
[394198122,1763371858177,-214.564455,0.00030127,7]
[394198123,1763371858186,-151.0,0.00030127,7]
[394198124,1763371858196,-151.0,0.00030127,7]
[394198125,1763371858206,-151.0,0.00030127,7]
[394198126,1763371858216,-151.0,0.00030127,7]
[394198127,1763371858227,-160.822724,0.00030127,7]
[394198128,1763371858236,-151.0,0.00030127,7]
[394198129,1763371858246,-151.0,0.00030127,7]
[394198130,1763371858254,-151.0,0.00030127,7]
[394198131,1763371858263,-235.07778,0.00030127,7]
[394198132,1763371858272,-151.0,0.00030127,7]
[394198133,1763371858280,-151.0,0.00030127,7]
[394198134,1763371858289,-151.0,0.00030127,7]
[394198135,1763371858299,-151.0,0.00030127,7]
[394198136,1763371858308,-151.0,0.00030127,7]
[394198137,1763371858317,-153.925361,0.00030127,7]
[394198138,1763371858327,-151.0,0.00030127,7]
[394198139,1763371858336,-151.0,0.00030127,7]
[394198140,1763371858345,-155.138494,0.00030127,7]
[394198141,1763371858355,-520.143045,0.00030127,7]
[394198142,1763371858365,-520.143045,0.00030127,7]
[394198143,1763371858375,-520.143045,0.00030127,7]
[394198144,1763371858385,-520.143045,0.00030127,7]
[394198145,1763371858395,-151.0,0.00030127,7]
[394198146,1763371858404,-151.0,0.00030127,7]
[394198147,1763371858414,-151.0,0.00030127,7]
[394198148,1763371858424,-520.143045,0.00030127,7]
[394198149,1763371858437,-151.0,0.00030127,7]
[394198150,1763371858447,-520.143045,0.00030127,7]
[394198151,1763371858457,-151.0,0.00030127,7]
[394198152,1763371858467,-151.0,0.00030127,7]
[394198153,1763371858478,-151.0,0.00030127,7]
[394198154,1763371858488,-256.670332,0.00030127,7]
[394198155,1763371858498,-151.0,0.00030127,7]
[394198156,1763371858509,-520.143045,0.00030127,7]
[394198157,1763371858519,-520.143045,0.00030127,7]
[394198158,1763371858530,-151.0,0.00030127,7]
[394198159,1763371858539,-151.0,0.00030127,7]
[394198160,1763371858549,-279.273065,0.00030127,7]
[394198161,1763371858559,-151.0,0.00030127,7]
[394198162,1763371858570,-151.0,0.00030127,7]
[394198163,1763371858580,-151.0,0.00030127,7]
[394198164,1763371858590,-151.0,0.00030127,7]
[394198165,1763371858600,-151.0,0.00030127,7]
[394198166,1763371858609,-151.0,0.00030127,7]
[394198167,1763371858619,-151.0,0.00030127,7]
[394198168,1763371858630,-435.342005,0.00030127,7]
[394198169,1763371858640,-151.0,0.00030127,7]
[394198170,1763371858651,-435.342005,0.00030127,7]
[394198171,1763371858662,-151.0,0.00030127,7]
[394198172,1763371858672,-151.0,0.00030127,7]
[394198173,1763371858682,-435.342005,0.00030127,7]
[394198174,1763371858692,-151.0,0.00030127,7]
[394198175,1763371858702,-298.728891,0.00030127,7]
[394198176,1763371858712,-435.342005,0.00030127,7]
[394198177,1763371858723,-435.342005,0.00030127,7]
[394198178,1763371858732,-435.342005,0.00030127,7]
[394198179,1763371858742,-151.0,0.00030127,7]
[394198180,1763371858753,-151.0,0.00030127,7]
[394198181,1763371858763,-435.342005,0.00030127,7]
[394198182,1763371858773,-435.341997,0.00030127,7]
[394198183,1763371858783,-151.0,0.00030127,7]
[394198184,1763371858793,-151.0,0.00030127,7]
[394198185,1763371858803,-151.0,0.00030127,7]
[394198186,1763371858815,-151.0,0.00030127,7]
[394198187,1763371858825,-151.0,0.00030127,7]
[394198188,1763371858835,-151.0,0.00030127,7]
[394198189,1763371858845,-589.96183,0.00030127,7]
[394198190,1763371858855,-589.96183,0.00030127,7]
[394198191,1763371858866,-259.121839,0.00030127,7]
[394198192,1763371858878,-589.96183,0.00030127,7]
[394198193,1763371858889,-589.96183,0.00030127,7]
[394198194,1763371858900,-332.626043,0.00030127,7]
[394198195,1763371858911,-255.950202,0.00030127,7]
[394198196,1763371858922,-332.626043,0.00030127,7]
[394198197,1763371858931,-255.950202,0.00030127,7]
[394198198,1763371858943,-589.96183,0.00030127,7]
[394198199,1763371858954,-589.96183,0.00030127,7]
[394198200,1763371858963,-255.950202,0.00030127,7]
[394198201,1763371858974,-255.950202,0.00030127,7]
[394198202,1763371858984,-332.626043,0.00030127,7]
[394198203,1763371858996,-589.96183,0.00030127,7]
[394198204,1763371859007,-589.961837,0.00030127,7]
[394198205,1763371859017,-153.881735,0.00030127,7]
[394198206,1763371859028,-332.626043,0.00030127,7]
[394198207,1763371859038,-255.950202,0.00030127,7]
[394198208,1763371859050,-255.950202,0.00030127,7]
[394198209,1763371859061,-332.626043,0.00030127,7]
[394198210,1763371859072,-332.626043,0.00030127,7]
[394198211,1763371859082,-255.950202,0.00030127,7]
[394198212,1763371859092,-255.950208,0.00030127,7]
[394198213,1763371859102,-332.626043,0.00030127,7]
[394198214,1763371859111,-332.626052,0.00030127,7]
[394198215,1763371859121,-151.0,0.00030127,7]
[394198216,1763371859131,-151.0,0.00030127,7]
[394198217,1763371859140,-151.0,0.00030127,7]
[394198218,1763371859150,-151.0,0.00030127,7]
[394198219,1763371859160,-151.0,0.00030127,7]
[394198220,1763371859170,-151.0,0.00030127,7]
[394198221,1763371859180,-151.0,0.00030127,7]
[394198222,1763371859189,-158.583592,0.00030127,7]
[394198223,1763371859199,-151.0,0.00030127,7]
[394198224,1763371859209,-151.0,0.00030127,7]
[394198225,1763371859219,-151.0,0.00030127,7]
[394198226,1763371859229,-151.0,0.00030127,7]
[394198227,1763371859239,-151.0,0.00030127,7]
[394198228,1763371859249,-154.591382,0.00030127,7]
[394198229,1763371859259,-151.0,0.00030127,7]
[394198230,1763371859270,-151.0,0.00030127,7]
[394198231,1763371859280,-256.849912,0.00030127,7]
[394198232,1763371859290,-151.0,0.00030127,7]
[394198233,1763371859300,-256.849912,0.00030127,7]
[394198234,1763371859310,-151.0,0.00030127,7]
[394198235,1763371859320,-189.086596,0.00030127,7]
[394198236,1763371859330,-256.849912,0.00030127,7]
[394198237,1763371859342,-287.233314,0.00030127,7]
[394198238,1763371859352,-256.849915,0.00030127,7]
[394198239,1763371859363,-203.657462,0.00030127,7]
[394198240,1763371859373,-203.657462,0.00030127,7]
[394198241,1763371859383,-203.657462,0.00030127,7]
[394198242,1763371859586,-165.883715,0.00030127,7]
[394198243,1763371859597,-203.65747,0.00030127,7]
[394198244,1763371859607,-165.883715,0.00030127,7]
[394198245,1763371859617,-151.0,0.00030127,7]
[394198246,1763371859626,-165.883715,0.00030127,7]
[394198247,1763371859636,-165.883707,0.00030127,7]
[394198248,1763371859645,-257.761796,0.00030127,7]
[394198249,1763371859654,-257.761796,0.00030127,7]
[394198250,1763371859665,-257.761796,0.00030127,7]
[394198251,1763371859675,-257.7618,0.00030127,7]
[394198252,1763371859685,-151.0,0.00030127,7]
[394198253,1763371859695,-151.0,0.00030127,7]
[394198254,1763371859705,-184.823981,0.00030127,7]
[394198255,1763371859717,-155.500659,0.00030127,7]
[394198256,1763371859727,-151.0,0.00030127,7]
[394198257,1763371859736,-151.0,0.00030127,7]
[394198258,1763371859747,-151.0,0.00030127,7]
[394198259,1763371859758,-151.0,0.00030127,7]
[394198260,1763371859768,-151.0,0.00030127,7]
[394198261,1763371859778,-260.083173,0.00030127,7]
[394198262,1763371859788,-151.0,0.00030127,7]
[394198263,1763371859797,-151.0,0.00030127,7]
[394198264,1763371859807,-151.0,0.00030127,7]
[394198265,1763371859818,-376.962864,0.00030127,7]
[394198266,1763371859828,-376.962864,0.00030127,7]
[394198267,1763371859839,-376.962864,0.00030127,7]
[394198268,1763371859849,-376.962869,0.00030127,7]
[394198269,1763371859860,-150.0,0.00030127,30]
[394198270,1763371859870,-1060.64999848,0.0003013,2]
[394198271,1763371859881,-185.67636347,0.0003013,30]
[394198272,1763371859891,-1487.23556624,0.0003013,5]
[394198273,1763371859900,-626.44306857,0.0003013,2]
[394198274,1763371859909,-5000.2507085,0.0003013,2]
[394198275,1763371859919,-199.34831102,0.0003013,2]
[394198276,1763371859929,-1209.87701636,0.0003013,2]
[394198277,1763371859938,-162.85541706,0.0003013,20]
[394198278,1763371859947,-151.0,0.0003013,7]
[394198279,1763371859956,-153.989285,0.0003013,7]
[394198280,1763371859966,-152.821003,0.0003013,7]
[394198281,1763371859975,-151.0,0.0003013,7]
[394198282,1763371859985,-151.0,0.0003013,7]
[394198283,1763371859995,-13694.02192315,0.0003013,2]
[394198284,1763371860004,-7643.45576099,0.0003013,2]
[394198285,1763371860013,-300.0,0.00030136,10]
[394198286,1763371860023,-447.62807937,0.00030136,10]
[394198287,1763371860034,-300.0,0.00030136,10]
[394198288,1763371860044,-854.23600774,0.00030136,7]
[394198289,1763371860054,-300.0,0.00030136,10]
[394198290,1763371860064,-151.0,0.00030136,7]
[394198291,1763371860073,-151.0,0.00030136,7]
[394198292,1763371860082,-153.927743,0.00030136,7]
[394198293,1763371860092,-151.0,0.00030136,7]
[394198294,1763371860103,-185.252096,0.00030136,7]
[394198295,1763371860115,-151.0,0.00030136,7]
[394198296,1763371860125,-154.087767,0.00030136,7]
[394198297,1763371860136,-219.399204,0.00030136,7]
[394198298,1763371860145,-219.399204,0.00030136,7]
[394198299,1763371860155,-219.399204,0.00030136,7]
[394198300,1763371860165,-219.399204,0.00030136,7]
[394198301,1763371860175,-151.0,0.00030136,7]
[394198302,1763371860185,-151.0,0.00030136,7]
[394198303,1763371860195,-151.0,0.00030136,7]
[394198304,1763371860205,-151.0,0.00030136,7]
[394198305,1763371860216,-151.0,0.00030136,7]
[394198306,1763371860227,-151.0,0.00030136,7]
[394198307,1763371860238,-151.0,0.00030136,7]
[394198308,1763371860248,-153.791604,0.00030136,7]
[394198309,1763371860259,-151.0,0.00030136,7]
[394198310,1763371860271,-151.0,0.00030136,7]
[394198311,1763371860281,-151.0,0.00030136,7]
[394198312,1763371860291,-266.474888,0.00030136,7]
[394198313,1763371860301,-500.0,0.00030136,2]
[394198314,1763371860310,-500.0,0.00030136,2]
[394198315,1763371860320,-500.0,0.00030136,10]
[394198316,1763371860330,-500.0,0.00030136,2]
[394198317,1763371860340,-1961.62,0.00030136,2]
[394198318,1763371860350,-500.0,0.00030136,2]
[394198319,1763371860360,-300.0,0.00030136,2]
[394198320,1763371860371,-300.0,0.00030136,2]
[394198321,1763371860380,-500.0,0.00030136,2]
[394198322,1763371860390,-500.0,0.00030136,2]
[394198323,1763371860401,-500.0,0.00030136,2]
[394198324,1763371860421,-500.0,0.00030136,2]
[394198325,1763371860438,-500.0,0.00030136,2]
[394198326,1763371860449,-500.0,0.00030136,2]
[394198327,1763371860460,-2814558.80729458,0.00030137,120]
[394198328,1763371860471,-500.0,0.00030137,15]
[394198329,1763371860483,-407.24,0.00030137,2]
[394198330,1763371860494,-1524.0,0.00030137,120]
[394198331,1763371860505,-151.0,0.00030137,31]
[394198332,1763371860516,-151.0,0.00030137,31]
[394198333,1763371860529,-153.739809,0.00030137,31]
[394198334,1763371860539,-153.854065,0.00030137,31]
[394198335,1763371860550,-151.0,0.00030137,31]
[394198336,1763371860560,-151.0,0.00030137,31]
[394198337,1763371860571,-151.0,0.00030137,31]
[394198338,1763371860581,-151.0,0.00030137,31]
[394198339,1763371860591,-151.0,0.00030137,31]
[394198340,1763371860601,-151.0,0.00030137,31]
[394198341,1763371860615,-151.0,0.00030137,31]
[394198342,1763371860626,-249.692269,0.00030137,31]
[394198343,1763371860636,-245.28028,0.00030137,31]
[394198344,1763371860645,-164.000081,0.00030137,31]
[394198345,1763371860656,-245.28028,0.00030137,31]
[394198346,1763371860666,-151.0,0.00030137,31]
[394198347,1763371860676,-245.28028,0.00030137,31]
[394198348,1763371860686,-151.0,0.00030137,31]
[394198349,1763371860696,-245.28028,0.00030137,31]
[394198350,1763371860707,-152.999487,0.00030137,30]
[394198351,1763371860717,-151.0,0.00030137,31]
[394198352,1763371860727,-151.0,0.00030137,31]
[394198353,1763371860737,-151.0,0.00030137,31]
[394198354,1763371860747,-151.0,0.00030137,31]
[394198355,1763371860757,-151.0,0.00030137,31]
[394198356,1763371860768,-151.0,0.00030137,31]
[394198357,1763371860781,-151.0,0.00030137,31]
[394198358,1763371860792,-151.0,0.00030137,31]
[394198359,1763371860803,-151.0,0.00030137,31]
[394198360,1763371860813,-151.0,0.00030137,31]
[394198361,1763371860823,-151.0,0.00030137,31]
[394198362,1763371860834,-151.0,0.00030137,31]
[394198363,1763371860844,-219.399204,0.00030137,31]
[394198364,1763371860853,-219.399204,0.00030137,31]
[394198365,1763371860863,-219.399204,0.00030137,31]
[394198366,1763371860873,-219.399204,0.00030137,31]
[394198367,1763371860882,-151.0,0.00030137,31]
[394198368,1763371860892,-151.0,0.00030137,31]
[394198369,1763371860902,-151.0,0.00030137,31]
[394198370,1763371860912,-151.0,0.00030137,31]
[394198371,1763371860922,-151.0,0.00030137,15]
[394198372,1763371860932,-151.0,0.00030137,31]
[394198373,1763371860942,-151.0,0.00030137,31]
[394198374,1763371860952,-153.306981,0.00030137,31]
[394198375,1763371860962,-240.558038,0.00030137,31]
[394198376,1763371860975,-151.0,0.00030137,31]
[394198377,1763371860986,-151.0,0.00030137,31]
[394198378,1763371860996,-214.564455,0.00030137,31]
[394198379,1763371861006,-214.564455,0.00030137,31]
[394198380,1763371861017,-214.564455,0.00030137,31]
[394198381,1763371861028,-214.564455,0.00030137,31]
[394198382,1763371861038,-151.0,0.00030137,31]
[394198383,1763371861048,-152.835393,0.00030137,31]
[394198384,1763371861057,-151.0,0.00030137,31]
[394198385,1763371861067,-151.0,0.00030137,10]
[394198386,1763371861078,-151.0,0.00030137,31]
[394198387,1763371861088,-520.143045,0.00030137,28]
[394198388,1763371861097,-520.143045,0.00030137,28]
[394198389,1763371861108,-151.0,0.00030137,31]
[394198390,1763371861118,-520.143045,0.00030137,28]
[394198391,1763371861128,-151.0,0.00030137,31]
[394198392,1763371861139,-151.0,0.00030137,31]
[394198393,1763371861148,-151.0,0.00030137,31]
[394198394,1763371861158,-520.143045,0.00030137,28]
[394198395,1763371861172,-151.0,0.00030137,31]
[394198396,1763371861182,-151.0,0.00030137,31]
[394198397,1763371861192,-296.117264,0.00030137,31]
[394198398,1763371861202,-151.0,0.00030137,31]
[394198399,1763371861212,-151.0,0.00030137,31]
[394198400,1763371861221,-237.480936,0.00030137,31]
[394198401,1763371861232,-364.451564,0.00030137,31]
[394198402,1763371861243,-364.451564,0.00030137,31]
[394198403,1763371861254,-364.451564,0.00030137,31]
[394198404,1763371861265,-364.451572,0.00030137,31]
[394198405,1763371861276,-513.008002,0.00030137,30]
[394198406,1763371861287,-335.956017,0.00030137,31]
[394198407,1763371861298,-513.008002,0.00030137,30]
[394198408,1763371861308,-151.0,0.00030137,31]
[394198409,1763371861319,-335.956017,0.00030137,31]
[394198410,1763371861330,-513.008002,0.00030137,30]
[394198411,1763371861340,-151.0,0.00030137,31]
[394198412,1763371861350,-335.956017,0.00030137,31]
[394198413,1763371861363,-513.008006,0.00030137,30]
[394198414,1763371861373,-151.0,0.00030137,31]
[394198415,1763371861383,-335.956018,0.00030137,31]
[394198416,1763371861392,-151.0,0.00030137,31]
[394198417,1763371861403,-189.813334,0.00030137,31]
[394198418,1763371861413,-189.813334,0.00030137,31]
[394198419,1763371861424,-189.813334,0.00030137,31]
[394198420,1763371861437,-180.222763,0.00030137,31]
[394198421,1763371861447,-189.813341,0.00030137,31]
[394198422,1763371861458,-180.222763,0.00030137,31]
[394198423,1763371861468,-180.222763,0.00030137,31]
[394198424,1763371861479,-180.222754,0.00030137,31]
[394198425,1763371861489,-162.037886,0.00030137,31]
[394198426,1763371861500,-173.961542,0.00030137,31]
[394198427,1763371861510,-173.961542,0.00030137,31]
[394198428,1763371861520,-173.961542,0.00030137,31]
[394198429,1763371861530,-173.961538,0.00030137,31]
[394198430,1763371861540,-355.123468,0.00030137,31]